bitfinex/quotes_BTCUSD_20220307
["timestamp","ask_amount","ask_price","bid_price","bid_amount"]
[1646676940263,0.3010638,38020.0,38005.0,0.24323847]
[1646676940466,0.04785415,38019.0,38006.0,0.4327698]
[1646676940764,0.015,38007.0,38006.0,0.4277698]
[1646676940965,0.015,38007.0,38006.0,0.77127406]
[1646676941163,0.015,38007.0,38006.0,0.126706]
[1646676941366,0.63645187,38007.0,38004.0,0.001]
[1646676941564,0.68475187,38007.0,38004.0,0.001]
[1646676941767,1.84979401,38006.0,38001.0,0.0022524]
[1646676941986,1.84979401,38006.0,37998.0,0.001]
[1646676941987,0.406785,38003.0,38000.0,52.38912223]
[1646676942178,0.406785,38003.0,38000.0,43.28983963]
[1646676942179,0.46733819,38001.0,38000.0,43.28983963]
[1646676942433,0.88010089,38001.0,38000.0,32.33163629]
[1646676942630,0.88010089,38001.0,38000.0,24.048021]
[1646676942631,9.58438148,38001.0,38000.0,24.048021]
[1646676942841,7.51799303,38001.0,38000.0,21.82369975]
[1646676943022,7.61799303,38001.0,38000.0,17.59952181]
[1646676943223,7.89390779,38001.0,38000.0,14.9488324]
[1646676943425,7.83374452,38001.0,38000.0,12.4911174]
[1646676943623,5.3800625,38001.0,38000.0,9.28920913]
[1646676943825,5.06067851,38001.0,38000.0,6.24722113]
[1646676944024,5.06067851,38001.0,38000.0,5.0316516]
[1646676944226,5.41777851,38001.0,38000.0,4.8842516]
[1646676944532,1.3002,37990.0,37974.0,0.31593128]
[1646676944730,0.0306264,37982.0,37965.0,0.001]
[1646676944929,1.98907111,37981.0,37973.0,1.98722066]
[1646676945127,2.07592111,37981.0,37973.0,1.98722066]
[1646676945328,3.19e-06,37977.0,37973.0,1.98722066]
[1646676945626,0.05,37978.0,37977.0,0.27890395]
[1646676945828,0.505122,37978.0,37974.0,0.06095495]
[1646676946027,0.0983,37978.0,37974.0,0.06095495]
[1646676946271,0.05,37978.0,37975.0,0.406826]
[1646676946469,0.01023,37980.0,37978.0,0.58070377]
[1646676946672,0.1998,37981.0,37978.0,0.17387777]
[1646676946866,0.1998,37981.0,37979.0,0.406826]
[1646676947272,0.1998,37981.0,37978.0,0.17387777]
[1646676947472,0.1998,37981.0,37977.0,0.00853]
[1646676947668,0.0483,37983.0,37977.0,0.00853]
[1646676947869,0.0483,37983.0,37982.0,0.17468872]
[1646676948470,0.03871,37990.0,37983.0,0.406826]
[1646676948673,0.00020265,37995.0,37985.0,0.80276198]
[1646676948872,0.00020265,37995.0,37990.0,0.406826]
[1646676948873,2.65e-06,37995.0,37990.0,0.406826]
[1646676949069,0.015,38007.0,37990.0,0.406826]
[1646676949070,0.015,38007.0,37996.0,0.406826]
[1646676949271,0.015,38007.0,38002.0,0.406826]
[1646676949471,0.015,38007.0,38002.0,0.26188367]
[1646676949671,0.287177,38006.0,38002.0,0.06202367]
[1646676949921,0.015,38007.0,37979.0,0.8529]
[1646676949922,0.287177,38004.0,37979.0,0.8529]
[1646676950125,0.287177,38004.0,37996.0,0.26316349]
[1646676950320,0.287177,38002.0,37991.0,0.6]
[1646676950524,0.17571005,38005.0,37991.0,0.6]
[1646676950525,0.287177,38000.0,37991.0,0.6]
[1646676950720,0.287177,37998.0,37994.0,0.06582611]
[1646676950922,0.21690071,37997.0,37991.0,0.73164721]
[1646676951121,0.335477,37996.0,37991.0,0.73164721]
[1646676951319,0.331997,37996.0,37991.0,0.73164721]
[1646676951521,0.281537,37996.0,37991.0,0.73164721]
[1646676951718,2.38e-06,37998.0,37992.0,0.19746199]
[1646676951921,2.38e-06,37998.0,37993.0,0.7077328]
[1646676952124,0.01000238,38007.0,37999.0,0.2]
[1646676952322,0.01315,38006.0,38001.0,0.2]
[1646676952519,0.215861,38010.0,38001.0,0.13159534]
[1646676952723,0.215861,38010.0,38001.0,0.19739534]
[1646676952919,0.19197506,38009.0,38001.0,0.19739534]
[1646676953119,0.215861,38008.0,38007.0,0.21190225]
[1646676953320,0.19197506,38009.0,38001.0,0.19739534]
[1646676953321,0.63570674,38005.0,38002.0,0.11579767]
[1646676953520,0.34616228,38004.0,38002.0,0.11579767]
[1646676953768,0.215861,38003.0,38002.0,0.06579767]
[1646676953970,0.215861,38003.0,37997.0,0.195]
[1646676953971,0.264161,38003.0,37997.0,0.195]
[1646676954167,0.63570674,38005.0,38000.0,0.195]
[1646676954371,0.63570674,38005.0,38001.0,0.406669]
[1646676954569,1.32440151,38011.0,38005.0,1.55]
[1646676954770,0.01315,38022.0,38016.0,0.195]
[1646676954968,0.01315,38024.0,38017.0,0.57909083]
[1646676955168,0.37238228,38031.0,38017.0,0.57909083]
[1646676955169,0.01315,38030.0,38018.0,0.7965]
[1646676955471,0.01315,38030.0,38019.0,0.195]
[1646676955767,0.01315,38030.0,38022.0,0.27626402]
[1646676955967,0.215861,38029.0,38023.0,0.06577012]
[1646676956169,0.01314,38028.0,38026.0,0.0999]
[1646676956367,0.34616228,38033.0,38023.0,0.065771]
[1646676956368,0.215861,38027.0,38023.0,0.065771]
[1646676956566,0.35760074,38033.0,38023.0,0.065771]
[1646676956767,0.02622,38039.0,38024.0,0.82110515]
[1646676956975,0.485,38042.0,38033.0,0.164356]
[1646676957170,0.01314,38041.0,38035.0,0.28507307]
[1646676957425,0.1483,38053.0,38033.0,0.214356]
[1646676957426,0.14580678,38034.0,38033.0,0.214356]
[1646676957621,0.76223675,38054.0,38035.0,0.195]
[1646676957622,0.01314,38052.0,38035.0,0.195]
[1646676957821,0.03936,38053.0,38042.0,0.06184144]
[1646676958026,0.03936,38053.0,38044.0,0.25299037]
[1646676958027,0.21496435,38051.0,38044.0,0.25299037]
[1646676958224,0.00081154,38046.0,38044.0,0.5088099]
[1646676958622,0.00081154,38046.0,38044.0,0.5745439]
[1646676958924,0.01314,38059.0,38045.0,1.306669]
[1646676959127,0.01314,38059.0,38055.0,0.06571994]
[1646676959321,0.30232126,38066.0,38055.0,0.06571994]
[1646676959322,0.215861,38058.0,38055.0,0.06571994]
[1646676959522,0.215861,38056.0,38055.0,0.06571994]
[1646676960128,0.215861,38056.0,38054.0,0.13143988]
[1646676960334,0.215861,38056.0,38049.0,0.13145743]
[1646676960524,0.35470086,38058.0,38049.0,0.13145743]
[1646676960525,0.215861,38054.0,38049.0,0.13145743]
[1646676960724,0.1602739,38050.0,38049.0,0.13145743]
[1646676960921,0.1602739,38050.0,38048.0,0.06572818]
[1646676960922,0.215861,38049.0,38048.0,0.13145518]
[1646676961161,0.01312,38057.0,38048.0,0.13145518]
[1646676961162,0.215861,38053.0,38048.0,0.13145518]
[1646676961364,0.35470086,38052.0,38048.0,0.19718607]
[1646676961571,0.210942,38051.0,38036.0,0.247204]
[1646676961768,0.004,38054.0,38036.0,0.247204]
[1646676961769,0.210942,38049.0,38043.0,0.20569195]
[1646676962164,0.210942,38049.0,38038.0,0.32831]
[1646676962364,0.210942,38049.0,38043.0,0.2123626]
[1646676962563,2.09831934,38050.0,38043.0,0.2123626]
[1646676963168,0.5640772,38049.0,38042.0,0.26293502]
[1646676963363,2.09831934,38050.0,38042.0,0.26293502]
[1646676963563,0.210942,38049.0,38042.0,0.26293502]
[1646676963963,2.09831934,38050.0,38042.0,0.26293502]
[1646676964164,2.09831934,38050.0,38047.0,0.07442383]
[1646676964364,2.09831934,38050.0,38048.0,0.21362885]
[1646676964565,2.09831934,38050.0,38049.0,0.406148]
[1646676964764,2.09831934,38050.0,38048.0,0.47649945]
[1646676965015,2.09831934,38050.0,38049.0,0.05]
[1646676965217,0.210942,38049.0,38036.0,0.247204]
[1646676965417,0.15,38045.0,38030.0,0.26297718]
[1646676965617,0.272382,38048.0,38025.0,0.05]
[1646676965618,0.15,38042.0,38025.0,0.05]
[1646676965819,0.360942,38040.0,38024.0,0.7395]
[1646676966017,0.360942,38040.0,38023.0,0.1998]
[1646676966018,0.360942,38040.0,38020.0,0.13156]
[1646676966019,0.17156512,38025.0,38020.0,0.13156]
[1646676966217,0.259242,38024.0,38020.0,0.26312606]
[1646676966418,0.1,38035.0,38020.0,0.26312606]
[1646676966419,0.0483,38023.0,38020.0,0.26312606]
[1646676966615,0.0483,38023.0,38021.0,0.065772]
[1646676966815,0.0483,38023.0,38022.0,0.06707957]
[1646676967016,0.0483,38026.0,38023.0,1.2]
[1646676967219,0.0483,38026.0,38025.0,0.67984601]
[1646676967415,0.0483,38026.0,38025.0,0.48140554]
[1646676967615,0.0483,38026.0,38025.0,0.34486483]
[1646676968018,2.32019063,38029.0,38028.0,0.195]
[1646676968019,0.8938269,38029.0,38028.0,0.195]
[1646676968220,0.8938269,38029.0,38028.0,1.01306581]
[1646676968521,0.8938269,38029.0,38028.0,0.56493061]
[1646676968764,0.8938269,38029.0,38028.0,0.75993061]
[1646676968965,0.8938269,38029.0,38028.0,1.25915984]
[1646676969165,0.8938269,38029.0,38028.0,0.506148]
[1646676969466,1.1047689,38029.0,38027.0,0.13160367]
[1646676969664,0.210942,38028.0,38027.0,0.13160367]
[1646676969864,0.210942,38028.0,38027.0,0.13149]
[1646676970866,0.225942,38028.0,38027.0,0.13149]
[1646676971468,1.38060354,38028.0,38026.0,0.00011367]
[1646676971768,1.38060354,38028.0,38020.0,0.00045476]
[1646676971769,1.360942,38026.0,38020.0,3.876e-05]
[1646676971965,0.210942,38024.0,38020.0,3.876e-05]
[1646676972165,0.0442,38024.0,38021.0,0.07435612]
[1646676972422,0.015,38028.0,38023.0,0.63240504]
[1646676972622,0.015,38028.0,38023.0,0.69817704]
[1646676973222,0.015,38028.0,38027.0,0.05498547]
[1646676973424,0.015,38028.0,38026.0,0.131536]
[1646676973926,0.015,38028.0,38027.0,0.456148]
[1646676974523,0.015,38028.0,38027.0,1.44209539]
[1646676974726,1.85461728,38045.0,38029.0,0.47189]
[1646676974930,0.01314,38044.0,38033.0,0.195]
[1646676975127,1.84147728,38045.0,38034.0,0.53762]
[1646676975325,1.84147728,38045.0,38036.0,0.406148]
[1646676975560,1.84147728,38045.0,38037.0,0.35446154]
[1646676975724,1.84147728,38045.0,38036.0,0.406148]
[1646676975725,1.85461728,38045.0,38041.0,0.406148]
[1646676975925,1.85461728,38045.0,38040.0,0.406217]
[1646676975926,1.84147728,38045.0,38040.0,0.406217]
[1646676976167,0.00020394,38043.0,38040.0,0.406217]
[1646676976764,0.00020394,38043.0,38042.0,0.52768071]
[1646676977163,0.35640634,38050.0,38042.0,0.12146371]
[1646676977362,0.00020394,38044.0,38039.0,0.197199]
[1646676977762,0.00020394,38044.0,38040.0,0.456217]
[1646676978163,0.00020394,38044.0,38040.0,0.506217]
[1646676978370,0.19808579,38051.0,38042.0,0.065732]
[1646676978668,0.00081565,38050.0,38045.0,0.1277256]
[1646676978866,0.00081565,38050.0,38046.0,0.406217]
[1646676979064,0.00081565,38050.0,38047.0,0.7372]
[1646676979264,0.00081565,38050.0,38047.0,0.91572839]
[1646676979463,0.19911676,38053.0,38047.0,0.91572839]
[1646676979663,0.68200987,38053.0,38047.0,0.7372]
[1646676979924,0.00020394,38050.0,38048.0,0.131463]
[1646676980124,0.00020394,38050.0,38049.0,0.406217]
[1646676980327,0.00020394,38050.0,38049.0,0.456217]
[1646676980524,0.49289311,38053.0,38049.0,0.456217]
[1646676980723,0.49289311,38053.0,38049.0,0.05]
[1646676981124,0.00020057,38051.0,38049.0,0.05]
[1646676981331,0.48809368,38053.0,38050.0,0.76262334]
[1646676981533,0.48809368,38053.0,38050.0,0.82833234]
[1646676981535,0.005,38053.0,38050.0,0.82833234]
[1646676981731,0.005,38053.0,38050.0,0.87833234]
[1646676981926,0.97669368,38072.0,38050.0,0.87833234]
[1646676981927,0.01314,38063.0,38052.0,0.432437]
[1646676982127,0.97669368,38072.0,38061.0,0.07137918]
[1646676982128,0.01312,38071.0,38061.0,0.07137918]
[1646676982328,0.406217,38070.0,38062.0,0.197094]
[1646676982527,0.1328873,38061.0,38060.0,0.406217]
[1646676982926,0.01312,38071.0,38061.0,0.55]
[1646676983128,0.01312,38075.0,38066.0,0.05667851]
[1646676983329,0.01312,38075.0,38067.0,1.15116798]
[1646676983526,0.01312,38075.0,38067.0,1.20116798]
[1646676983764,0.01312,38077.0,38067.0,1.20116798]
[1646676983968,0.01312,38077.0,38070.0,0.15603889]
[1646676984165,0.406217,38076.0,38071.0,0.065688]
[1646676984381,0.01312,38075.0,38072.0,0.06568913]
[1646676984568,0.01312,38079.0,38073.0,0.75828498]
[1646676984767,0.00020412,38075.0,38074.0,0.406217]
[1646676985070,0.00020412,38075.0,38074.0,0.75828498]
[1646676985266,0.00020412,38075.0,38074.0,0.80828498]
[1646676985466,0.00020412,38075.0,38074.0,1.11441615]
[1646676985666,0.4715,38094.0,38078.0,0.197012]
[1646676985866,0.4715,38094.0,38081.0,0.19631665]
[1646676985867,0.37737787,38091.0,38081.0,0.19631665]
[1646676986068,0.00081634,38082.0,38081.0,0.19631665]
[1646676986265,0.00081634,38082.0,38081.0,0.24631665]
[1646676986469,0.00081634,38082.0,38081.0,0.05]
[1646676986665,0.00081634,38082.0,38080.0,0.2313344]
[1646676986866,0.48309368,38088.0,38080.0,0.2313344]
[1646676987922,0.88931068,38088.0,38087.0,0.05517021]
[1646676988120,0.210862,38087.0,38085.0,0.1017883]
[1646676988320,0.48309368,38088.0,38085.0,0.1017883]
[1646676988523,0.01311,38094.0,38086.0,0.406217]
[1646676988723,0.004,38095.0,38087.0,1.12679551]
[1646676988924,0.27093448,38109.0,38099.0,0.15990882]
[1646676989125,0.27093448,38109.0,38100.0,0.35206798]
[1646676989126,0.17319064,38104.0,38100.0,0.35206798]
[1646676989321,0.001,38095.0,38089.0,0.05]
[1646676989521,0.00020431,38093.0,38087.0,0.7791]
[1646676989723,0.00020431,38093.0,38087.0,0.7291]
[1646676990121,0.20234943,38092.0,38087.0,0.794766]
[1646676990321,0.001,38095.0,38087.0,0.86042378]
[1646676990322,0.210862,38091.0,38087.0,0.86042378]
[1646676990626,0.48309368,38096.0,38088.0,0.35206798]
[1646676990822,0.00020431,38092.0,38088.0,0.35206798]
[1646676991269,0.00020431,38092.0,38091.0,0.17901861]
[1646676991475,0.00081711,38098.0,38091.0,0.17901861]
[1646676991476,0.00081711,38098.0,38091.0,1.06187864]
[1646676991773,0.01311,38108.0,38094.0,0.406217]
[1646676991970,0.00081711,38099.0,38095.0,0.34897016]
[1646676992170,0.01312,38114.0,38098.0,0.15]
[1646676992369,0.01312,38114.0,38109.0,0.19116237]
[1646676992571,0.406217,38120.0,38113.0,0.07401273]
[1646676992767,1.97851784,38129.0,38113.0,0.07401273]
[1646676992768,0.210862,38118.0,38113.0,0.11561312]
[1646676992970,1.97851784,38129.0,38113.0,0.05]
[1646676992971,0.406217,38117.0,38113.0,0.05]
[1646676993171,0.406217,38117.0,38110.0,0.7846]
[1646676993967,0.43685929,38112.0,38110.0,0.7846]
[1646676994169,0.37122229,38112.0,38110.0,0.7846]
[1646676995228,0.95,38111.0,38103.0,0.196857]
[1646676995428,0.37122229,38112.0,38105.0,0.05]
[1646676995429,0.401293,38110.0,38105.0,0.05]
[1646676995729,0.401293,38110.0,38100.0,0.1]
[1646676996030,0.401293,38110.0,38099.0,0.15]
[1646676996228,0.01312,38110.0,38100.0,0.36025152]
[1646676996428,0.01311,38112.0,38100.0,0.15]
[1646676996631,0.36202574,38116.0,38099.0,0.131247]
[1646676996828,0.00020057,38106.0,38099.0,0.131247]
[1646676997033,0.00020057,38106.0,38103.0,0.131264]
[1646676997230,0.00020057,38106.0,38105.0,0.605728]
[1646676997432,0.00020057,38106.0,38105.0,0.1998]
[1646676997433,0.40592857,38106.0,38105.0,0.1998]
[1646676997634,0.35670536,38113.0,38105.0,0.1998]
[1646676997635,0.206427,38111.0,38105.0,0.1998]
[1646676997830,0.405728,38109.0,38105.0,0.1998]
[1646676998033,0.00019713,38107.0,38106.0,0.065635]
[1646676998889,0.20662413,38107.0,38106.0,0.065635]
[1646676999291,0.20662413,38107.0,38106.0,0.12682896]
[1646676999492,0.00019713,38107.0,38106.0,0.065635]
[1646677000392,0.00019713,38107.0,38106.0,0.787535]
[1646677000596,0.00019713,38107.0,38106.0,1.14956074]
[1646677000794,0.00019713,38107.0,38106.0,1.29956074]
[1646677001194,0.00019713,38107.0,38106.0,1.71587374]
[1646677001396,0.1740234,38127.0,38107.0,0.02622]
[1646677001595,0.02622,38133.0,38106.0,1.74272938]
[1646677001596,0.19344036,38120.0,38118.0,0.131207]
[1646677001796,0.18181089,38116.0,38106.0,0.7719]
[1646677001997,0.18181089,38116.0,38106.0,1.02411924]
[1646677002002,0.206427,38115.0,38106.0,1.02411924]
[1646677002200,0.206427,38115.0,38106.0,0.45270344]
[1646677002432,0.206427,38115.0,38106.0,0.50270344]
[1646677002632,0.18181089,38116.0,38111.0,0.23115386]
[1646677002832,0.18181089,38116.0,38107.0,0.58065484]
[1646677002833,0.25898866,38108.0,38107.0,0.58065484]
[1646677003031,0.18181089,38116.0,38108.0,0.9]
[1646677003331,0.18181089,38116.0,38108.0,1.1]
[1646677003332,0.18681089,38116.0,38108.0,1.1]
[1646677003531,0.18681089,38116.0,38111.0,0.15]
[1646677003732,0.18681089,38116.0,38114.0,0.42165873]
[1646677003733,1.089e-05,38116.0,38114.0,0.42165873]
[1646677003939,1.089e-05,38116.0,38115.0,0.76775374]
[1646677004132,1.089e-05,38116.0,38115.0,0.81775374]
[1646677004738,0.01311,38132.0,38116.0,1.55]
[1646677004937,0.01311,38132.0,38115.0,1.14292574]
[1646677004938,0.1922547,38123.0,38117.0,0.36202574]
[1646677005145,0.1922547,38123.0,38115.0,0.7309]
[1646677005146,0.206427,38122.0,38115.0,0.7309]
[1646677005537,0.1922547,38123.0,38100.0,0.15]
[1646677005538,0.8002,38118.0,38100.0,0.6371]
[1646677005742,0.431948,38112.0,38100.0,0.6371]
[1646677005936,0.206427,38102.0,38100.0,0.6371]
[1646677006171,0.76775374,38101.0,38100.0,0.6371]
[1646677006374,0.405728,38101.0,38100.0,0.6371]
[1646677006573,1.205928,38101.0,38100.0,0.6371]
[1646677006771,1.71856183,38101.0,38100.0,0.6371]
[1646677006969,1.71856183,38101.0,38100.0,0.6016]
[1646677007170,1.363238,38101.0,38100.0,0.6016]
[1646677007373,1.78733156,38101.0,38100.0,0.6016]
[1646677007568,1.78733156,38101.0,38100.0,0.2682]
[1646677007569,1.72526374,38101.0,38100.0,0.2682]
[1646677007768,0.463038,38101.0,38100.0,0.2682]
[1646677008171,0.05731,38101.0,38100.0,0.2682]
[1646677008370,0.0442,38101.0,38100.0,0.2682]
[1646677008574,0.36346218,38112.0,38100.0,0.823928]
[1646677008770,0.2,38117.0,38100.0,0.823928]
[1646677008771,0.26322784,38115.0,38101.0,0.145]
[1646677008971,0.405728,38109.0,38100.0,0.2682]
[1646677009172,0.38231986,38108.0,38102.0,0.065631]
[1646677009371,0.206427,38107.0,38102.0,0.065631]
[1646677009672,0.01311,38113.0,38102.0,0.065631]
[1646677009926,0.01311,38113.0,38100.0,0.34442]
[1646677009927,0.01311,38113.0,38105.0,0.145]
[1646677010119,0.405728,38118.0,38106.0,0.7879]
[1646677010320,0.17217007,38115.0,38106.0,0.7879]
[1646677010718,0.62451201,38114.0,38108.0,0.065621]
[1646677011522,1.05360419,38114.0,38107.0,0.131242]
[1646677011724,1.85380419,38114.0,38106.0,0.79008906]
[1646677011920,1.006627,38112.0,38106.0,0.79008906]
[1646677012121,0.405728,38110.0,38106.0,0.79008906]
[1646677012318,0.206427,38108.0,38106.0,0.00218906]
[1646677012522,0.90049018,38107.0,38106.0,8.906e-05]
[1646677012718,0.39005217,38101.0,38100.0,0.2682]
[1646677012919,0.38505217,38101.0,38100.0,0.26808816]
[1646677013771,0.38505217,38101.0,38089.0,0.6888724]
[1646677013772,0.431948,38100.0,38088.0,0.145]
[1646677013980,0.07042,38099.0,38089.0,0.7826]
[1646677014175,0.206427,38098.0,38089.0,0.7826]
[1646677014371,0.0442,38099.0,38092.0,0.145]
[1646677014572,0.0442,38099.0,38094.0,0.06563917]
[1646677014974,0.0442,38099.0,38094.0,0.19692417]
[1646677015372,0.0472,38099.0,38095.0,0.00012336]
[1646677015572,0.0472,38099.0,38095.0,0.06576636]
[1646677015972,0.11781096,38093.0,38092.0,0.27627833]
[1646677016175,0.11781096,38093.0,38089.0,1.05889017]
[1646677016375,0.405728,38092.0,38089.0,0.7826]
[1646677017413,0.405728,38092.0,38090.0,0.145]
[1646677017414,0.004,38092.0,38090.0,0.145]
[1646677017613,0.11781096,38093.0,38091.0,0.95]
[1646677017816,0.11781096,38093.0,38091.0,1.14708173]
[1646677018016,0.11781096,38093.0,38092.0,0.31171764]
[1646677018214,0.11781096,38093.0,38092.0,0.45671764]
[1646677018414,0.11781096,38093.0,38092.0,0.38801325]
[1646677018614,0.11781096,38093.0,38092.0,0.58781325]
[1646677018814,1.096e-05,38093.0,38092.0,0.58781325]
[1646677019013,1.096e-05,38093.0,38092.0,0.3448]
[1646677019215,1.096e-05,38093.0,38092.0,0.3948]
[1646677020530,0.02997,38099.0,38094.0,0.405728]
[1646677020721,0.02997,38099.0,38098.0,0.600728]
[1646677020920,0.02997,38099.0,38098.0,0.9048126]
[1646677021167,0.02997,38099.0,38098.0,0.4990846]
[1646677021370,0.02997,38099.0,38098.0,0.145]
[1646677021575,0.435698,38099.0,38094.0,0.131254]
[1646677021769,0.8633115,38099.0,38094.0,0.131254]
[1646677022070,0.435698,38099.0,38093.0,0.00012306]
[1646677022368,0.206427,38098.0,38093.0,0.145]
[1646677022568,0.37599821,38098.0,38093.0,0.00012306]
[1646677022769,0.37099821,38098.0,38093.0,0.00012306]
[1646677022969,0.201427,38098.0,38094.0,0.131299]
[1646677023469,0.02997,38099.0,38097.0,0.145]
[1646677023673,0.02997,38099.0,38098.0,0.405835]
[1646677024269,0.02997,38099.0,38098.0,0.05]
[1646677024469,0.02597,38099.0,38098.0,0.05]
[1646677024921,0.02597,38099.0,38097.0,0.3448]
[1646677024922,0.431805,38099.0,38097.0,0.1998]
[1646677025125,0.431805,38099.0,38095.0,0.115642]
[1646677025323,0.63565619,38099.0,38095.0,0.065642]
[1646677025727,0.8398551,38099.0,38095.0,0.065642]
[1646677026823,0.63565619,38099.0,38095.0,0.065642]
[1646677027024,0.431805,38099.0,38095.0,0.065642]
[1646677027624,0.405835,38098.0,38095.0,0.065642]
[1646677027825,0.02597,38099.0,38097.0,0.145]
[1646677028024,0.02597,38099.0,38098.0,0.67874503]
[1646677029068,0.02597,38099.0,38098.0,0.27291003]
[1646677029269,0.01597,38099.0,38098.0,0.27291003]
[1646677029468,0.1,38100.0,38099.0,1.55]
[1646677029671,0.1,38100.0,38099.0,2.100835]
[1646677029869,0.1,38100.0,38099.0,0.195]
[1646677030070,0.1,38100.0,38099.0,0.600835]
[1646677030470,0.1,38100.0,38099.0,0.195]
[1646677031075,0.1,38100.0,38099.0,0.600835]
[1646677031271,0.106,38100.0,38099.0,0.650835]
[1646677031471,0.106,38100.0,38099.0,0.70581064]
[1646677032076,0.20563454,38113.0,38109.0,0.29040667]
[1646677032272,0.20563454,38113.0,38112.0,0.405835]
[1646677032273,0.00079193,38113.0,38112.0,0.405835]
[1646677032520,0.00079193,38113.0,38110.0,0.21127873]
[1646677032521,0.09508729,38111.0,38110.0,0.21127873]
[1646677032720,0.09508729,38111.0,38110.0,0.26127873]
[1646677032921,0.01278729,38111.0,38110.0,0.22715322]
[1646677033121,0.01278729,38111.0,38110.0,0.21068134]
[1646677033321,0.01278729,38111.0,38110.0,0.21068222]
[1646677033521,0.41851129,38111.0,38110.0,0.131218]
[1646677033725,0.01278729,38111.0,38110.0,0.131218]
[1646677034725,8.729e-05,38111.0,38110.0,0.636942]
[1646677035125,7.89e-06,38112.0,38111.0,0.12148]
[1646677035326,0.35976574,38125.0,38111.0,0.12148]
[1646677035327,0.21874454,38122.0,38111.0,0.7766457]
[1646677035524,0.20563454,38122.0,38116.0,0.405659]
[1646677035726,0.46258541,38125.0,38117.0,0.065588]
[1646677035923,0.46258541,38125.0,38119.0,0.2068598]
[1646677035924,0.20563454,38125.0,38119.0,0.2068598]
[1646677036175,0.56265403,38131.0,38123.0,0.121424]
[1646677036176,0.20563454,38126.0,38123.0,0.121424]
[1646677036566,0.25695087,38128.0,38123.0,0.171424]
[1646677036567,0.20563454,38128.0,38123.0,0.171424]
[1646677036766,0.20563454,38128.0,38123.0,0.05]
[1646677036767,0.36030754,38127.0,38123.0,0.05]
[1646677036967,0.20063454,38128.0,38123.0,0.115593]
[1646677037168,1.205895,38128.0,38123.0,0.065593]
[1646677037368,0.409695,38127.0,38123.0,0.065593]
[1646677037768,0.16334613,38127.0,38123.0,0.065593]
[1646677037969,0.004,38127.0,38125.0,0.261596]
[1646677038269,0.004,38127.0,38125.0,0.37718896]
[1646677038270,0.00420569,38127.0,38125.0,0.37718896]
[1646677038469,0.00420569,38127.0,38125.0,0.42718896]
[1646677038669,0.00020569,38127.0,38125.0,0.42718896]
[1646677039069,0.00020569,38127.0,38126.0,0.36030754]
[1646677039273,0.01,38130.0,38126.0,0.68747554]
[1646677039477,0.001,38127.0,38126.0,0.39274]
[1646677039921,0.001,38127.0,38126.0,0.44274]
[1646677040119,0.001,38127.0,38126.0,0.377167]
[1646677040319,0.001,38127.0,38120.0,0.45720201]
[1646677040320,0.5,38125.0,38115.0,0.0999]
[1646677040525,0.20229406,38118.0,38115.0,0.0999]
[1646677040721,0.0483,38125.0,38113.0,0.2623376]
[1646677041018,0.0483,38125.0,38115.0,0.06559849]
[1646677041219,0.01,38130.0,38115.0,0.32796349]
[1646677041421,0.01,38130.0,38119.0,0.07315028]
[1646677041618,0.01,38130.0,38122.0,0.1923139]
[1646677042019,0.01,38130.0,38125.0,0.22310088]
[1646677042321,0.01,38130.0,38123.0,0.065588]
[1646677042819,0.01,38130.0,38125.0,0.3290414]
[1646677043221,0.00020569,38129.0,38125.0,0.3290414]
[1646677043423,0.00020569,38129.0,38125.0,0.2790414]
[1646677043672,0.00020569,38129.0,38126.0,0.54831505]
[1646677043875,0.00020569,38129.0,38127.0,0.21212134]
[1646677044080,0.00020569,38129.0,38128.0,0.35456198]
[1646677044269,0.014,38130.0,38128.0,0.35456198]
[1646677044569,0.00016779,38129.0,38127.0,0.05]
[1646677044772,0.00016779,38129.0,38127.0,0.40456198]
[1646677045169,0.00016779,38129.0,38126.0,0.37490407]
[1646677045369,0.00016779,38129.0,38126.0,0.72946605]
[1646677045370,0.002,38129.0,38126.0,0.72946605]
[1646677045573,0.002,38129.0,38127.0,0.06114505]
[1646677045770,0.002,38129.0,38128.0,0.20467612]
[1646677045970,0.002,38129.0,38127.0,0.06114505]
[1646677046171,0.00067105,38136.0,38135.0,0.49343221]
[1646677046372,0.09504568,38133.0,38130.0,0.065587]
[1646677046972,0.09504568,38133.0,38132.0,0.15903196]
[1646677047172,0.09504568,38133.0,38130.0,0.065587]
[1646677047417,0.09504568,38133.0,38126.0,0.131151]
[1646677047418,0.405691,38132.0,38126.0,0.131151]
[1646677047616,0.09804568,38133.0,38125.0,0.002]
[1646677047617,0.405691,38131.0,38125.0,0.002]
[1646677047817,0.405691,38131.0,38125.0,0.13760579]
[1646677048017,0.16364068,38133.0,38125.0,0.07201079]
[1646677048018,0.09804568,38133.0,38125.0,0.07201079]
[1646677048218,0.0932526,38133.0,38129.0,0.16830631]
[1646677048717,0.0902526,38133.0,38129.0,0.16830631]
[1646677048917,0.0902526,38133.0,38130.0,0.065588]
[1646677049124,0.09004568,38133.0,38130.0,0.065588]
[1646677049419,0.09325261,38133.0,38130.0,0.065588]
[1646677049618,0.09325261,38133.0,38126.0,0.53746998]
[1646677049821,0.09325261,38133.0,38126.0,0.181175]
[1646677050019,0.09325261,38133.0,38124.0,0.35729498]
[1646677050220,0.01311,38141.0,38127.0,0.15]
[1646677050427,0.25695087,38145.0,38139.0,0.21719529]
[1646677050622,0.20665103,38153.0,38139.0,0.26719529]
[1646677050820,0.20665103,38154.0,38139.0,0.21719529]
[1646677051020,0.20390904,38148.0,38139.0,0.21719529]
[1646677051276,0.20390904,38148.0,38139.0,0.63905359]
[1646677051475,0.20390904,38148.0,38145.0,0.21654256]
[1646677051685,0.40588895,38148.0,38140.0,0.35629498]
[1646677051874,0.40588895,38148.0,38132.0,0.01605124]
[1646677051875,0.405691,38142.0,38132.0,0.01605124]
[1646677052076,0.471277,38142.0,38132.0,0.01605124]
[1646677052274,0.21390344,38143.0,38132.0,0.35629498]
[1646677052475,0.405691,38142.0,38137.0,0.065565]
[1646677052675,0.405691,38142.0,38131.0,0.01605124]
[1646677052875,0.17786897,38137.0,38131.0,0.01605124]
[1646677053278,0.405691,38136.0,38121.0,0.77]